[Event "IM Marmaris Karia VII 2019"]
[Site "Marmaris"]
[Date "2019.05.24"]
[Round "1.2"]
[White "Tanriverdi, Enes"]
[Black "Sibashvili, Giorgi"]
[Result "1-0"]
[ECO "B06"]
[WhiteElo "2348"]
[BlackElo "2381"]
[Annotator "NA"]
[PlyCount "77"]
[EventDate "2019.05.25"]
[EventType "schev"]
[EventCountry "TUR"]
[SourceTitle "playchess.com"]
[Source "ChessBase"]
[SourceQuality "1"]
[TimeControl "5400+30"]

1. d4 {[%emt 0:00:30]} g6 {[%emt 0:00:30]} 2. e4 {[%emt 0:03:30]} Bg7 {[%emt 0:00:30]} 3. Nf3 {[%emt 0:00:30]} d6 {[%emt 0:00:30]} 4. Bd3 {[%emt 0:00:00]} Bg4 {[%emt 0:12:30]} 5. c3 {[%emt 0:00:00]} Nc6 {[%emt 0:00:30]} (5... e5 6. h3 Bxf3 7. gxf3 exd4 8. cxd4 Nc6 9. d5 Ne5 10. Be2 Nd7 11. Nc3 a6 12. Be3 Ngf6 13. f4 {0-1 (31) Sanal,V (2506)-Petrosian,T (2643) Golden Sands 2015}) 6. Nbd2 {[%emt 0:01:30] B06: Modern Defence} e5 {[%emt 0:06:30]} 7. h3 {[%emt 0:01:30]} Bd7 {[%emt 0:01:30]} 8. dxe5 {[%emt 0:01:30]} Nxe5 {[%emt 0:01:30]} 9. Nxe5 {[%emt 0:01:30]} dxe5 $146 {[%emt 0:04:30]} ({Predecessor:} 9... Bxe5 10. O-O Bg7 11. Nf3 Ne7 12. Bg5 h6 13. Bh4 {0-1 (44) Turpanov,M (2351)-Rahman,Z (2542) Doha 2003}) 10. Nf3 {[%emt 0:00:30]} Ne7 {[%emt 0:02:30]} 11. O-O {[%emt 0:00:30]} O-O {[%emt 0:00:30]} 12. Be3 {[%emt 0:06:30]} h6 {[%emt 0:02:30]} 13. Qc2 {[%emt 0:06:30]} b6 {[%emt 0:06:30]} 14. Rad1 {[%emt 0:14:30]} Qe8 {[%emt 0:03:30]} 15. Rfe1 {[%emt 0:00:30]} Be6 {[%emt 0:09:30]} 16. b3 {[%emt 0:03:30]} Rd8 {[%emt 0:03:30]} 17. a4 {[%emt 0:00:30]} Nc8 {[%emt 0:29:56]} 18. b4 {[%emt 0:05:30]} f5 {[%emt 0:03:15]} 19. exf5 {[%emt 0:10:30]} gxf5 {[%emt 0:06:57]} 20. Bb5 {[%emt 0:20:30]} Qf7 {[%emt 0:00:30]} 21. Rxd8 {[%emt 0:00:30]} Rxd8 {[%emt 0:00:30]} 22. Bc1 {[%emt 0:00:30]} e4 {[%emt 0:00:30]} 23. Nd4 {[%emt 0:00:30]} Nd6 {[%emt 0:00:30]} 24. Nc6 {[%emt 0:00:30]} Rf8 {[%emt 0:00:30]} 25. Bf4 {[%emt 0:00:30]} Nxb5 {[%emt 0:00:30]} 26. axb5 {[%emt 0:00:30]} Bc4 {[%emt 0:00:30]} 27. Nd4 {[%emt 0:00:30]} Rd8 {[%emt 0:00:30]} 28. Ra1 {[%emt 0:17:28]} Bd3 {[%emt 0:02:14]} 29. Qc1 {[%emt 0:00:12]} Bxd4 {[%emt 0:00:24]} 30. cxd4 {[%emt 0:00:06]} Rxd4 {[%emt 0:00:22]} 31. Qe3 {[%emt 0:00:57]} Rxb4 {[%emt 0:00:34]} 32. Rxa7 {[%emt 0:00:10]} Rc4 {[%emt 0:00:38]} 33. Ra8+ {[%emt 0:01:06]} Kh7 {[%emt 0:00:01]} 34. Be5 {[%emt 0:00:00]} f4 {[%emt 0:01:03]} 35. Rh8+ {[%emt 0:00:00]} Kg6 {[%emt 0:00:03]} 36. Bxf4 {[%emt 0:00:00]} Rc2 {[%emt 0:01:01]} 37. Rxh6+ {[%emt 0:01:35]} Kg7 {[%emt 0:00:01]} 38. Be5+ {[%emt 0:00:00]} Kf8 {[%emt 0:00:06]} 39. Rf6 {[%emt 0:00:00]} 1-0

[Event "IM Marmaris Karia VII 2019"]
[Site "Marmaris"]
[Date "2019.05.24"]
[Round "1.3"]
[White "Alaz, Ahmet Efekan"]
[Black "Morozov, Nichita"]
[Result "1-0"]
[ECO "C54"]
[WhiteElo "2252"]
[BlackElo "2371"]
[Annotator "ChessBase"]
[PlyCount "93"]
[EventDate "2019.05.25"]
[EventType "schev"]
[EventCountry "TUR"]
[SourceTitle "playchess.com"]
[Source "ChessBase"]
[SourceQuality "1"]
[TimeControl "5400+30"]

1. e4 {[%emt 0:00:30]} e5 {[%emt 0:00:30]} 2. Nf3 {[%emt 0:00:00]} Nc6 {[%emt 0:00:30]} 3. Bc4 {[%emt 0:00:00]} Bc5 {[%emt 0:00:30]} 4. c3 {[%emt 0:03:30]} Nf6 {[%emt 0:00:30]} 5. d3 {[%emt 0:00:30]} a6 {[%emt 0:00:30]} 6. a4 {[%emt 0:00:30]} Ba7 {[%emt 0:03:30]} 7. O-O {[%emt 0:06:30]} d6 {[%emt 0:00:30]} 8. Nbd2 {[%emt 0:01:30]} h6 {[%emt 0:00:30]} 9. Re1 {[%emt 0:00:30]} g5 {[%emt 0:00:30]} 10. Nf1 {[%emt 0:10:30]} g4 {[%emt 0:00:00]} 11. N3d2 {[%emt 0:00:30]} h5 {[%emt 0:00:00]} 12. Nb1 {[%emt 0:09:30]} Be6 {[%emt 0:02:30]} 13. Be3 {[%emt 0:06:30]} Bxe3 {[%emt 0:01:30]} 14. Nxe3 {[%emt 0:00:30]} Bxc4 {[%emt 0:00:30]} 15. Nxc4 {[%emt 0:00:30]} Qd7 {[%emt 0:00:30]} 16. d4 {[%emt 0:00:30]} h4 {[%emt 0:00:30]} 17. dxe5 {[%emt 0:06:30]} Nxe5 {[%emt 0:01:30]} 18. Nxe5 {[%emt 0:01:30]} dxe5 {[%emt 0:00:30]} 19. Qxd7+ {[%emt 0:00:30]} Kxd7 {[%emt 0:00:00]} 20. Na3 {[%emt 0:00:30]} Ke6 {[%emt 0:00:00]} 21. Nc4 {[%emt 0:02:30]} g3 {[%emt 0:01:30]} 22. fxg3 {[%emt 0:00:30]} hxg3 {[%emt 0:00:00]} 23. h3 {[%emt 0:01:30]} Rh4 {[%emt 0:00:00]} 24. Nd2 {[%emt 0:00:00]} Rd8 {[%emt 0:00:30]} 25. Re2 {[%emt 0:00:00]} Rf4 {[%emt 0:04:30]} 26. Rae1 {[%emt 0:03:30]} b5 {[%emt 0:02:30]} 27. Nf1 {[%emt 0:05:30]} Nh5 {[%emt 0:04:30]} 28. Re3 {[%emt 0:01:30]} Rg8 {[%emt 0:02:30]} 29. axb5 {[%emt 0:00:30]} axb5 {[%emt 0:00:00]} 30. R1e2 {[%emt 0:03:30]} c5 {[%emt 0:00:00]} 31. Rd2 {[%emt 0:01:30]} c4 {[%emt 0:00:30]} 32. Rd5 {[%emt 0:10:30]} f5 {[%emt 0:01:30]} 33. Rxb5 {[%emt 0:01:30]} Rxf1+ {[%emt 0:00:30]} 34. Kxf1 {[%emt 0:00:00]} f4 {[%emt 0:00:00]} 35. Re2 {[%emt 0:03:00]} f3 {[%emt 0:02:00]} 36. gxf3 {[%emt 0:01:30]} Nf4 {[%emt 0:00:30]} 37. Rg2 {[%emt 0:00:30]} Nxh3 {[%emt 0:00:30]} 38. Rc5 {[%emt 0:00:30]} Nf4 {[%emt 0:00:30]} 39. Rc6+ {[%emt 0:00:30]} Ke7 {[%emt 0:00:30]} 40. Rxc4 {[%emt 0:00:30]} Rd8 {[%emt 0:00:00]} 41. Rxg3 {[%emt 0:00:30]} Rd1+ {[%emt 0:00:00]} 42. Kf2 {[%emt 0:00:00]} Rd2+ {[%emt 0:00:00]} 43. Ke1 {[%emt 0:00:00]} Rxb2 {[%emt 0:00:00]} 44. Rc6 {[%emt 0:01:30]} Kd7 {[%emt 0:00:00]} 45. Ra6 {[%emt 0:00:30]} Rb1+ {[%emt 0:00:00]} 46. Kd2 {[%emt 0:00:30]} Rb2+ {[%emt 0:00:00]} 47. Kd1 {[%emt 0:00:30]} 1-0

[Event "IM Marmaris Karia VII 2019"]
[Site "Marmaris"]
[Date "2019.05.24"]
[Round "1.5"]
[White "Ozkan, Taha"]
[Black "Darban, Morteza"]
[Result "1-0"]
[ECO "E00"]
[WhiteElo "1977"]
[BlackElo "2285"]
[Annotator "NA"]
[PlyCount "87"]
[EventDate "2019.05.25"]
[EventType "schev"]
[EventCountry "TUR"]
[SourceTitle "playchess.com"]
[Source "ChessBase"]
[SourceQuality "1"]
[TimeControl "5400+30"]

1. d4 {[%emt 0:00:30]} Nf6 {[%emt 0:00:30]} 2. c4 {[%emt 0:00:00]} e6 {[%emt 0:02:30]} 3. Bg5 {[%emt 0:00:00]} h6 {[%emt 0:01:30]} 4. Bxf6 {[%emt 0:00:30]} Qxf6 {[%emt 0:00:30]} 5. e3 {[%emt 0:04:30]} (5. Nc3 Bb4 6. Rc1 c5 7. e3 cxd4 8. exd4 b6 9. Be2 Bb7 10. Bf3 Nc6 11. Nge2 O-O 12. O-O Qd8 13. a3 Be7 14. b4 {½-½ (55) Ren,X (2282)-Lei,T (2537) Qinhuangdao 2018}) 5... g6 {[%emt 0:06:30]} 6. Nf3 {[%emt 0:00:30] E00: Catalan Bogo-Indian (3 g3 Bb4+)} Bg7 {[%emt 0:00:30]} 7. Nc3 {[%emt 0:01:30]} O-O {[%emt 0:00:30]} 8. Be2 {[%emt 0:01:30]} d6 {[%emt 0:05:30]} 9. O-O {[%emt 0:03:30]} Qe7 $146 {[%emt 0:00:30]} ({Predecessor:} 9... Nd7 10. e4 e5 11. d5 a5 12. a3 Qe7 {0-1 (40) Celik,E (1950)-Baenziger,F (2355) Konya 2018}) 10. b4 {[%emt 0:11:30]} c5 {[%emt 0:05:30]} 11. bxc5 {[%emt 0:04:30]} dxc5 {[%emt 0:00:30]} 12. Qb3 {[%emt 0:00:30]} cxd4 {[%emt 0:00:30]} 13. exd4 {[%emt 0:00:30]} Nc6 {[%emt 0:00:30]} 14. Rad1 {[%emt 0:05:30]} b6 {[%emt 0:05:30]} 15. Rfe1 {[%emt 0:02:30]} Bd7 {[%emt 0:24:30]} 16. Ne4 {[%emt 0:09:30]} f5 {[%emt 0:11:30]} 17. Ng3 {[%emt 0:03:30]} Rac8 {[%emt 0:01:30]} 18. Qd3 {[%emt 0:12:30]} (18. c5 $5) 18... Rfd8 {[%emt 0:10:30]} 19. d5 {[%emt 0:13:30]} (19. Bf1 $15) 19... Na5 {[%emt 0:01:51]} 20. Nd4 {[%emt 0:03:44] [#]} Nxc4 $2 {[%emt 0:13:16]} ({Black should try} 20... e5 $1 $19 {[%cal Re5d4]} 21. Nb5 e4) 21. dxe6 {[%emt 0:02:27]} Ba4 {[%emt 0:00:30]} 22. Nc6 {[%emt 0:00:30]} Bxc6 {[%emt 0:00:30]} 23. Qxc4 {[%emt 0:00:30]} Bd5 {[%emt 0:00:30]} 24. Rxd5 {[%emt 0:00:30]} Rxc4 {[%emt 0:00:30]} 25. Rxd8+ {[%emt 0:00:30]} Qxd8 {[%emt 0:00:30]} 26. e7 {[%emt 0:00:30]} Qxe7 {[%emt 0:00:30]} 27. Bxc4+ {[%emt 0:00:30]} Kf8 {[%emt 0:00:30]} 28. Rxe7 {[%emt 0:00:30]} Kxe7 {[%emt 0:00:30]} 29. Kf1 {[%emt 0:00:30]} h5 {[%emt 0:00:30]} 30. Ke2 {[%emt 0:00:30]} h4 {[%emt 0:00:30]} 31. Nf1 {[%emt 0:00:30]} Kd6 {[%emt 0:00:30]} 32. h3 {[%emt 0:00:30]} g5 {[%emt 0:00:30]} 33. Kd3 {[%emt 0:11:42]} Ke5 {[%emt 0:05:06]} 34. Ne3 {[%emt 0:00:58]} Bf8 {[%emt 0:00:16]} 35. Ba6 {[%emt 0:01:46]} Bc5 {[%emt 0:00:09]} 36. Bc8 {[%emt 0:02:32]} b5 {[%emt 0:01:48]} 37. f3 {[%emt 0:01:26]} Kf4 {[%emt 0:00:30]} 38. Nxf5 {[%emt 0:00:22]} a5 {[%emt 0:00:04]} 39. Nd4 {[%emt 0:00:52]} Kg3 {[%emt 0:00:01]} 40. Nxb5 {[%emt 0:00:14]} Kxg2 {[%emt 0:00:02]} 41. Bg4 {[%emt 0:00:08]} Kf2 {[%emt 0:00:09]} 42. Kc4 {[%emt 0:00:31]} Bb4 {[%emt 0:00:45]} 43. a4 {[%emt 0:00:34]} Ke3 {[%emt 0:00:03]} 44. Na7 {[%emt 0:00:20]} 1-0

[Event "IM Marmaris Karia VII 2019"]
[Site "Marmaris"]
[Date "2019.05.25"]
[Round "2.2"]
[White "Morozov, Nichita"]
[Black "Tanriverdi, Enes"]
[Result "1-0"]
[ECO "B07"]
[WhiteElo "2371"]
[BlackElo "2348"]
[Annotator "NA"]
[PlyCount "91"]
[EventDate "2019.05.25"]
[EventType "schev"]
[EventCountry "TUR"]
[SourceTitle "playchess.com"]
[Source "ChessBase"]
[SourceQuality "1"]
[TimeControl "5400+30"]

1. d4 {[%emt 0:03:30]} Nf6 {[%emt 0:00:30]} 2. Nf3 {[%emt 0:00:30]} g6 {[%emt 0:00:00]} 3. Nbd2 {[%emt 0:00:30]} d6 {[%emt 0:09:00]} 4. e4 {[%emt 0:00:30]} Bg7 {[%emt 0:00:00]} 5. Bd3 {[%emt 0:00:30]} O-O {[%emt 0:01:00]} 6. O-O {[%emt 0:00:30]} Nc6 {[%emt 0:04:30]} 7. c3 {[%emt 0:04:30]} e5 {[%emt 0:00:30]} 8. h3 {[%emt 0:01:30]} Nd7 {[%emt 0:00:30]} 9. Nb3 {[%emt 0:00:30]} a5 {[%emt 0:00:30]} 10. a4 {[%emt 0:00:30]} exd4 {[%emt 0:00:00]} 11. Nbxd4 {[%emt 0:02:30]} Nc5 {[%emt 0:00:00]} 12. Bc2 {[%emt 0:00:30]} Re8 {[%emt 0:00:30]} 13. Re1 {[%emt 0:00:30]} Bd7 {[%emt 0:03:30]} 14. Nb3 {[%emt 0:11:30]} Nxb3 {[%emt 0:05:30]} 15. Bxb3 {[%emt 0:00:00]} Be6 {[%emt 0:00:30]} 16. Bd5 {[%emt 0:07:00]} Qd7 {[%emt 0:00:30]} 17. Be3 {[%emt 0:00:30]} Bxd5 {[%emt 0:00:30]} 18. exd5 {[%emt 0:00:30]} Ne5 {[%emt 0:00:30]} 19. Nxe5 {[%emt 0:02:30]} Rxe5 {[%emt 0:00:30]} 20. Qb3 {[%emt 0:01:30]} b6 {[%emt 0:00:30]} 21. Bf4 {[%emt 0:07:30]} Rxe1+ {[%emt 0:00:30]} 22. Rxe1 {[%emt 0:00:30]} Re8 {[%emt 0:00:00]} 23. Re3 {[%emt 0:03:30]} Rxe3 {[%emt 0:01:00]} 24. Bxe3 {[%emt 0:02:30]} Qf5 {[%emt 0:00:30]} 25. Qc4 {[%emt 0:05:30]} Qb1+ {[%emt 0:11:30]} 26. Kh2 {[%emt 0:00:30]} Qxb2 {[%emt 0:00:30]} 27. Qxc7 {[%emt 0:00:30]} Be5+ {[%emt 0:00:00]} 28. f4 {[%emt 0:01:30]} Qxc3 {[%emt 0:00:00]} 29. Qxc3 {[%emt 0:01:30]} Bxc3 {[%emt 0:00:30]} 30. Bxb6 {[%emt 0:00:00]} Kf8 {[%emt 0:03:30]} 31. Kg3 {[%emt 0:01:00]} Ke7 {[%emt 0:00:00]} 32. Kf3 {[%emt 0:00:30]} Kd7 {[%emt 0:00:00]} 33. Ke4 {[%emt 0:00:30]} Kc8 {[%emt 0:00:30]} 34. f5 {[%emt 0:02:30]} Kb7 {[%emt 0:00:00]} 35. Be3 {[%emt 0:00:30]} Bb4 {[%emt 0:00:00]} 36. g4 {[%emt 0:09:30]} Bc3 {[%emt 0:01:30]} 37. Bf4 {[%emt 0:03:30]} Bb4 {[%emt 0:00:30]} 38. Be3 {[%emt 0:01:30]} Ba3 {[%emt 0:00:30]} 39. fxg6 {[%emt 0:02:30]} fxg6 {[%emt 0:00:00]} 40. Kf4 {[%emt 0:00:30]} Bc5 {[%emt 0:02:00]} 41. Bxc5 {[%emt 0:01:30]} dxc5 {[%emt 0:00:30]} 42. g5 {[%emt 0:00:00]} Kc7 {[%emt 0:00:30]} 43. Ke5 {[%emt 0:00:00]} Kd7 {[%emt 0:00:30]} 44. d6 {[%emt 0:00:30]} c4 {[%emt 0:00:30]} 45. Kd4 {[%emt 0:00:30]} Kxd6 {[%emt 0:00:30]} 46. Kxc4 {[%emt 0:00:00]} 1-0

[Event "IM Marmaris Karia VII 2019"]
[Site "Marmaris"]
[Date "2019.05.25"]
[Round "2.3"]
[White "Papenin, Nikolai"]
[Black "Alaz, Ahmet Efekan"]
[Result "1/2-1/2"]
[ECO "A47"]
[WhiteElo "2336"]
[BlackElo "2252"]
[Annotator "NA"]
[PlyCount "60"]
[EventDate "2019.05.25"]
[EventType "schev"]
[EventCountry "TUR"]
[SourceTitle "playchess.com"]
[Source "ChessBase"]
[SourceQuality "1"]
[TimeControl "5400+30"]

1. e4 {[%emt 0:00:30]} c6 {[%emt 0:00:30]} 2. Nf3 {[%emt 0:00:30]} d5 {[%emt 0:02:30]} 3. exd5 {[%emt 0:00:30]} cxd5 {[%emt 0:00:00]} 4. d4 {[%emt 0:00:00]} Nf6 {[%emt 0:01:00]} 5. Ne5 {[%emt 0:00:00]} e6 {[%emt 0:01:30]} 6. Nd2 {[%emt 0:03:30]} Be7 {[%emt 0:04:30]} 7. c3 {[%emt 0:00:30]} O-O {[%emt 0:00:30]} 8. Bd3 {[%emt 0:00:30]} b6 {[%emt 0:01:30]} 9. Qe2 {[%emt 0:00:30]} Bb7 {[%emt 0:01:30]} 10. O-O {[%emt 0:01:30]} Nbd7 {[%emt 0:01:30]} 11. f4 {[%emt 0:02:30]} Re8 {[%emt 0:06:30]} 12. g4 {[%emt 0:05:30]} Nf8 {[%emt 0:06:30]} 13. g5 {[%emt 0:04:30]} N6d7 {[%emt 0:00:30]} 14. Qh5 {[%emt 0:00:30]} g6 {[%emt 0:11:30]} 15. Qf3 {[%emt 0:02:30]} f5 {[%emt 0:06:30]} 16. gxf6 {[%emt 0:01:30]} Bxf6 {[%emt 0:00:30]} 17. Kh1 {[%emt 0:00:30]} Bg7 {[%emt 0:01:30]} 18. Qh3 {[%emt 0:01:30]} Nf6 {[%emt 0:12:30]} 19. Ndf3 {[%emt 0:00:30]} Ne4 {[%emt 0:03:30]} 20. Ng4 {[%emt 0:01:30]} Nd7 {[%emt 0:02:30]} 21. Ng5 {[%emt 0:01:30]} Nxg5 {[%emt 0:01:30]} 22. fxg5 {[%emt 0:00:30]} Qe7 {[%emt 0:00:30]} 23. Bb5 {[%emt 0:01:30]} Rf8 {[%emt 0:00:30]} 24. Bxd7 {[%emt 0:00:30]} Rxf1+ {[%emt 0:00:30]} 25. Qxf1 {[%emt 0:00:30]} Qxd7 {[%emt 0:00:30]} 26. Nf6+ {[%emt 0:01:30]} Bxf6 {[%emt 0:00:30]} 27. gxf6 {[%emt 0:00:30]} e5 {[%emt 0:01:30]} 28. f7+ {[%emt 0:00:00]} Qxf7 {[%emt 0:00:00]} 29. Qxf7+ {[%emt 0:00:00]} Kxf7 {[%emt 0:00:00]} 30. dxe5 {[%emt 0:00:00]} Ba6 {[%emt 0:01:30]} 1/2-1/2

[Event "IM Marmaris Karia VII 2019"]
[Site "Marmaris"]
[Date "2019.05.25"]
[Round "2.4"]
[White "Darban, Morteza"]
[Black "Kilic, Efe Mert"]
[Result "1-0"]
[ECO "B33"]
[WhiteElo "2285"]
[BlackElo "2248"]
[Annotator "NA"]
[PlyCount "141"]
[EventDate "2019.05.25"]
[EventType "schev"]
[EventCountry "TUR"]
[SourceTitle "playchess.com"]
[Source "ChessBase"]
[SourceQuality "1"]
[TimeControl "5400+30"]

1. e4 {[%emt 0:01:30]} c5 {[%emt 0:00:30]} 2. Nf3 {[%emt 0:00:00]} Nc6 {[%emt 0:00:00]} 3. d4 {[%emt 0:01:00]} cxd4 {[%emt 0:01:00]} 4. Nxd4 {[%emt 0:00:00]} Nf6 {[%emt 0:00:00]} 5. Nc3 {[%emt 0:00:00]} e5 {[%emt 0:00:00]} 6. Ndb5 {[%emt 0:00:00]} d6 {[%emt 0:00:30]} 7. Bg5 {[%emt 0:05:00]} a6 {[%emt 0:00:00]} 8. Na3 {[%emt 0:00:00]} b5 {[%emt 0:00:00]} 9. Nd5 {[%emt 0:00:00]} Be7 {[%emt 0:00:30]} 10. Bxf6 {[%emt 0:00:30]} Bxf6 {[%emt 0:00:30]} 11. c3 {[%emt 0:00:00]} Ne7 {[%emt 0:00:30]} 12. Nc2 {[%emt 0:08:00]} Nxd5 {[%emt 0:00:30]} 13. Qxd5 {[%emt 0:00:30]} Rb8 {[%emt 0:04:30]} 14. Nb4 {[%emt 0:00:30]} Bb7 {[%emt 0:02:30]} 15. Qd3 {[%emt 0:00:30]} O-O {[%emt 0:00:30]} 16. Be2 {[%emt 0:00:30]} Rc8 {[%emt 0:31:30]} 17. O-O {[%emt 0:01:30]} Rc5 {[%emt 0:01:30]} 18. a4 {[%emt 0:29:30]} a5 {[%emt 0:01:30]} 19. Nd5 {[%emt 0:03:30]} Bxd5 {[%emt 0:00:30]} 20. exd5 {[%emt 0:00:00]} b4 {[%emt 0:01:30]} 21. cxb4 {[%emt 0:05:00]} axb4 {[%emt 0:00:30]} 22. Qe4 {[%emt 0:00:30]} Qa5 {[%emt 0:00:30]} 23. Bb5 {[%emt 0:00:30]} Bg5 {[%emt 0:01:30]} 24. Qf5 {[%emt 0:01:30]} h6 {[%emt 0:05:30]} 25. Rfd1 {[%emt 0:07:30]} Rd8 {[%emt 0:03:30]} 26. Qg4 {[%emt 0:01:30]} Rf8 {[%emt 0:10:30]} 27. h4 {[%emt 0:01:30]} f5 {[%emt 0:01:30]} 28. Qh5 {[%emt 0:00:30]} Bd8 {[%emt 0:01:30]} 29. Bd7 {[%emt 0:03:30]} Rc4 {[%emt 0:03:30]} 30. Rac1 {[%emt 0:11:00]} Qc5 {[%emt 0:09:44]} 31. Rxc4 {[%emt 0:01:19]} Qxc4 {[%emt 0:00:17]} 32. Qg6 {[%emt 0:02:41]} Qg4 {[%emt 0:07:41]} 33. Qxg4 {[%emt 0:05:52]} fxg4 {[%emt 0:00:04]} 34. Bxg4 {[%emt 0:00:17]} Bb6 {[%emt 0:02:02]} 35. Be6+ {[%emt 0:00:59]} Kh7 {[%emt 0:00:57]} 36. Rd2 {[%emt 0:00:02]} b3 {[%emt 0:04:43]} 37. g3 {[%emt 0:00:41]} h5 {[%emt 0:02:22]} 38. Kg2 {[%emt 0:00:26]} Kh6 {[%emt 0:00:36]} 39. f3 {[%emt 0:00:52]} Rb8 {[%emt 0:00:25]} 40. Bd7 {[%emt 0:00:56]} Ba5 {[%emt 0:00:43]} 41. Rd3 {[%emt 0:09:20]} Rb4 {[%emt 0:00:03]} 42. Bb5 {[%emt 0:00:05]} Bb6 {[%emt 0:00:49]} 43. Rc3 {[%emt 0:01:30]} Rd4 {[%emt 0:00:30]} 44. Rd3 {[%emt 0:00:30]} Rb4 {[%emt 0:00:30]} 45. Rc3 {[%emt 0:00:30]} Rd4 {[%emt 0:00:30]} 46. Bd3 {[%emt 0:00:30]} Rxa4 {[%emt 0:00:30]} 47. Rxb3 {[%emt 0:00:30]} Bc5 {[%emt 0:00:30]} 48. Rb8 {[%emt 0:00:30]} g5 {[%emt 0:00:30]} 49. Rg8 {[%emt 0:00:30]} gxh4 {[%emt 0:00:30]} 50. Rg6+ {[%emt 0:00:30]} Kh7 {[%emt 0:00:30]} 51. Rg4+ {[%emt 0:00:30]} e4 {[%emt 0:02:52]} 52. Bxe4+ {[%emt 0:00:34]} Kh6 {[%emt 0:00:45]} 53. Rg6+ {[%emt 0:00:50]} Kh7 {[%emt 0:00:01]} 54. Rg5+ {[%emt 0:00:31]} Kh6 {[%emt 0:00:27]} 55. gxh4 {[%emt 0:00:02]} Rb4 {[%emt 0:01:44]} 56. Kg3 {[%emt 0:00:37]} Rxb2 {[%emt 0:00:37]} 57. Kf4 {[%emt 0:00:41]} Rb4 {[%emt 0:00:37]} 58. Rg6+ {[%emt 0:00:39]} Kh7 {[%emt 0:00:00]} 59. Kg5 {[%emt 0:00:11]} Kh8 {[%emt 0:00:25]} 60. Kxh5 {[%emt 0:00:51]} Rb2 {[%emt 0:00:20]} 61. f4 {[%emt 0:00:31]} Re2 {[%emt 0:00:40]} 62. Re6 {[%emt 0:00:15]} Kg7 {[%emt 0:00:16]} 63. Kg5 {[%emt 0:00:12]} Re1 {[%emt 0:00:24]} 64. h5 {[%emt 0:00:18]} Rg1+ {[%emt 0:00:03]} 65. Kf5 {[%emt 0:00:05]} Kf7 {[%emt 0:00:19]} 66. h6 {[%emt 0:01:17]} Rg3 {[%emt 0:01:30]} 67. h7 {[%emt 0:00:44]} Rh3 {[%emt 0:00:19]} 68. Kg4 {[%emt 0:00:19]} Rh2 {[%emt 0:00:05]} 69. Kg3 {[%emt 0:00:05]} Bg1 {[%emt 0:00:04]} 70. Rxd6 {[%emt 0:00:15]} Rh5 {[%emt 0:00:14]} 71. Bg6+ {[%emt 0:00:06]} 1-0

[Event "IM Marmaris Karia VII 2019"]
[Site "Marmaris"]
[Date "2019.05.25"]
[Round "2.5"]
[White "Mgeladze, Tamaz"]
[Black "Ozkan, Taha"]
[Result "1-0"]
[ECO "A11"]
[WhiteElo "2396"]
[BlackElo "1977"]
[Annotator "NA"]
[PlyCount "87"]
[EventDate "2019.05.25"]
[EventType "schev"]
[EventCountry "TUR"]
[SourceTitle "playchess.com"]
[Source "ChessBase"]
[SourceQuality "1"]
[TimeControl "5400+30"]

1. c4 {[%emt 0:00:30]} c6 {[%emt 0:01:30]} 2. Nf3 {[%emt 0:00:00]} d5 {[%emt 0:00:00]} 3. g3 {[%emt 0:00:00]} dxc4 {[%emt 0:00:00]} 4. Bg2 {[%emt 0:00:30]} b5 {[%emt 0:01:30]} 5. d3 {[%emt 0:06:30]} cxd3 {[%emt 0:01:30]} 6. Ne5 {[%emt 0:00:00]} Bb7 {[%emt 0:00:30]} 7. Nc3 {[%emt 0:04:00]} a6 {[%emt 0:06:30]} 8. O-O {[%emt 0:03:30]} e6 {[%emt 0:03:30]} 9. Nxd3 {[%emt 0:03:30]} Nd7 {[%emt 0:02:30]} 10. a4 {[%emt 0:01:30]} Qc7 {[%emt 0:07:30]} 11. axb5 {[%emt 0:01:30]} cxb5 {[%emt 0:00:30]} 12. Nxb5 {[%emt 0:01:30]} axb5 {[%emt 0:01:30]} 13. Rxa8+ {[%emt 0:00:30]} Bxa8 {[%emt 0:00:00]} 14. Bxa8 {[%emt 0:00:30]} Ngf6 {[%emt 0:01:00]} 15. Qb3 {[%emt 0:01:30]} Qc4 {[%emt 0:04:30]} 16. Qd1 {[%emt 0:03:30]} Be7 {[%emt 0:04:30]} 17. b3 {[%emt 0:01:30]} Qc8 {[%emt 0:11:30]} 18. Bf3 {[%emt 0:01:30]} O-O {[%emt 0:01:30]} 19. Bb2 {[%emt 0:01:30]} Nb6 {[%emt 0:04:30]} 20. Qa1 {[%emt 0:01:30]} Qc2 {[%emt 0:07:30]} 21. Qa5 {[%emt 0:03:30]} Nbd7 {[%emt 0:01:30]} 22. Bxf6 {[%emt 0:03:30]} Nxf6 {[%emt 0:04:30]} 23. Qxb5 {[%emt 0:00:30]} Qc7 {[%emt 0:00:30]} 24. Rc1 {[%emt 0:00:30]} Qa7 {[%emt 0:03:30]} 25. Qa4 {[%emt 0:03:30]} Qb6 {[%emt 0:00:30]} 26. Rc6 {[%emt 0:00:30]} Qb8 {[%emt 0:00:30]} 27. Ra6 {[%emt 0:00:30]} h6 {[%emt 0:06:30]} 28. b4 {[%emt 0:00:30]} e5 {[%emt 0:03:30]} 29. Ra8 {[%emt 0:05:30]} Qb6 {[%emt 0:04:32]} 30. b5 {[%emt 0:04:30]} e4 {[%emt 0:01:52]} 31. Bxe4 {[%emt 0:07:30]} Nxe4 {[%emt 0:00:35]} 32. Qxe4 {[%emt 0:00:30]} Qxb5 {[%emt 0:00:07]} 33. Ra7 {[%emt 0:00:30]} Bf6 {[%emt 0:02:54]} 34. Rb7 {[%emt 0:00:30]} Qa5 {[%emt 0:03:18]} 35. Qc4 {[%emt 0:01:30]} Qa1+ {[%emt 0:01:42]} 36. Kg2 {[%emt 0:00:30]} Qa8 {[%emt 0:01:14]} 37. Qd5 {[%emt 0:02:30]} Kh7 {[%emt 0:06:42]} 38. Qf3 {[%emt 0:05:30]} Qa2 {[%emt 0:01:36]} 39. Nb4 {[%emt 0:00:30]} Qe6 {[%emt 0:00:53]} 40. Nd5 {[%emt 0:00:30]} Bd4 {[%emt 0:01:03]} 41. Qd3+ {[%emt 0:00:00]} Kg8 {[%emt 0:00:24]} 42. Qxd4 {[%emt 0:00:00]} Qxe2 {[%emt 0:00:23]} 43. Ne7+ {[%emt 0:01:30]} Kh7 {[%emt 0:00:33]} 44. Nf5 {[%emt 0:00:30]} 1-0